fUSD/lending_fUSD_20260526
["ID","MTS","AMOUNT","RATE_DAILY","PERIOD"]
[423033066,1779780669000,-1268.310969,0.00032877,7]
[423033070,1779780669000,-1268.310969,0.00032877,7]
[423033076,1779780669000,-1268.310964,0.00032877,7]
[423033065,1779780669000,-1268.310969,0.00032877,7]
[423033068,1779780669000,-1268.310969,0.00032877,7]
[423033075,1779780669000,-1268.310969,0.00032877,7]
[423033072,1779780669000,-1268.310969,0.00032877,7]
[423033073,1779780669000,-1268.310969,0.00032877,7]
[423033057,1779780669000,-1268.310969,0.00032877,7]
[423033074,1779780669000,-1268.310969,0.00032877,7]
[423033071,1779780669000,-1268.310969,0.00032877,7]
[423033077,1779780669000,-219.047191,0.00032877,7]
[423033080,1779780669000,-151.0,0.00032877,7]
[423033079,1779780669000,-151.0,0.00032877,7]
[423033088,1779780669000,-165.908249,0.00032877,7]
[423033084,1779780669000,-218.12916,0.00032877,7]
[423033083,1779780669000,-151.0,0.00032877,7]
[423033081,1779780669000,-151.0,0.00032877,7]
[423033078,1779780669000,-151.0,0.00032877,7]
[423033082,1779780669000,-151.0,0.00032877,7]
[423033087,1779780669000,-218.12916,0.00032877,7]
[423033085,1779780669000,-259.983063,0.00032877,7]
[423033086,1779780669000,-218.12916,0.00032877,7]
[423033034,1779780669000,-496.554874,0.00032877,7]
[423033069,1779780669000,-1268.310969,0.00032877,7]
[423033054,1779780669000,-496.554874,0.00032877,7]
[423033019,1779780669000,-207.702649,0.00032877,7]
[423033059,1779780669000,-1268.310969,0.00032877,7]
[423033035,1779780669000,-503.489389,0.00032877,7]
[423033028,1779780669000,-496.554874,0.00032877,7]
[423033027,1779780669000,-207.702649,0.00032877,7]
[423033050,1779780669000,-151.0,0.00032877,7]
[423033024,1779780669000,-207.702649,0.00032877,7]
[423033026,1779780669000,-503.489389,0.00032877,7]
[423033029,1779780669000,-503.489389,0.00032877,7]
[423033031,1779780669000,-496.554874,0.00032877,7]
[423033032,1779780669000,-503.489389,0.00032877,7]
[423033037,1779780669000,-496.554874,0.00032877,7]
[423033038,1779780669000,-503.489389,0.00032877,7]
[423033036,1779780669000,-207.702654,0.00032877,7]
[423033047,1779780669000,-503.489397,0.00032877,7]
[423033039,1779780669000,-496.554874,0.00032877,7]
[423033030,1779780669000,-207.702649,0.00032877,7]
[423033048,1779780669000,-151.0,0.00032877,7]
[423033055,1779780669000,-496.554874,0.00032877,7]
[423033049,1779780669000,-496.554874,0.00032877,7]
[423033063,1779780669000,-1268.310969,0.00032877,7]
[423033052,1779780669000,-496.554874,0.00032877,7]
[423033062,1779780669000,-1268.310969,0.00032877,7]
[423033051,1779780669000,-496.554874,0.00032877,7]
[423033040,1779780669000,-503.489389,0.00032877,7]
[423033061,1779780669000,-1268.310969,0.00032877,7]
[423033043,1779780669000,-496.554874,0.00032877,7]
[423033046,1779780669000,-496.554874,0.00032877,7]
[423033042,1779780669000,-503.489389,0.00032877,7]
[423033044,1779780669000,-503.489389,0.00032877,7]
[423033041,1779780669000,-496.554874,0.00032877,7]
[423033045,1779780669000,-503.489389,0.00032877,7]
[423033135,1779780670000,-151.0,0.00032877,7]
[423033126,1779780670000,-1068.321479,0.00032877,7]
[423033139,1779780670000,-151.0,0.00032877,7]
[423033131,1779780670000,-976.9,0.00032877,2]
[423033120,1779780670000,-1068.321473,0.00032877,7]
[423033122,1779780670000,-1068.321473,0.00032877,7]
[423033127,1779780670000,-151.0,0.00032877,7]
[423033123,1779780670000,-1068.321473,0.00032877,7]
[423033124,1779780670000,-1068.321473,0.00032877,7]
[423033125,1779780670000,-1068.321473,0.00032877,7]
[423033119,1779780670000,-1068.321473,0.00032877,7]
[423033142,1779780670000,-289.928444,0.00032877,7]
[423033121,1779780670000,-1068.321473,0.00032877,7]
[423033132,1779780670000,-151.0,0.00032877,7]
[423033150,1779780670000,-151.0,0.00032877,7]
[423033136,1779780670000,-151.0,0.00032877,7]
[423033134,1779780670000,-151.0,0.00032877,7]
[423033138,1779780670000,-151.0,0.00032877,7]
[423033137,1779780670000,-151.0,0.00032877,7]
[423033141,1779780670000,-151.0,0.00032877,7]
[423033140,1779780670000,-151.0,0.00032877,7]
[423033144,1779780670000,-151.0,0.00032877,7]
[423033154,1779780670000,-151.0,0.00032877,7]
[423033155,1779780670000,-151.0,0.00032877,7]
[423033156,1779780670000,-183.695788,0.00032877,7]
[423033146,1779780670000,-151.0,0.00032877,7]
[423033149,1779780670000,-247.784321,0.00032877,7]
[423033117,1779780670000,-1068.321473,0.00032877,7]
[423033133,1779780670000,-151.0,0.00032877,7]
[423033128,1779780670000,-151.0,0.00032877,7]
[423033116,1779780670000,-1068.321473,0.00032877,7]
[423033130,1779780670000,-204.467842,0.00032877,7]
[423033089,1779780670000,-218.12916,0.00032877,7]
[423033091,1779780670000,-218.12916,0.00032877,7]
[423033101,1779780670000,-218.12916,0.00032877,7]
[423033102,1779780670000,-218.12916,0.00032877,7]
[423033090,1779780670000,-218.12916,0.00032877,7]
[423033092,1779780670000,-218.12916,0.00032877,7]
[423033095,1779780670000,-218.12916,0.00032877,7]
[423033098,1779780670000,-218.12916,0.00032877,7]
[423033100,1779780670000,-218.12916,0.00032877,7]
[423033099,1779780670000,-218.12916,0.00032877,7]
[423033093,1779780670000,-218.12916,0.00032877,7]
[423033096,1779780670000,-218.12916,0.00032877,7]
[423033097,1779780670000,-218.12916,0.00032877,7]
[423033129,1779780670000,-152.895266,0.00032877,7]
[423033094,1779780670000,-218.12916,0.00032877,7]
[423033148,1779780670000,-151.0,0.00032877,7]
[423033104,1779780670000,-218.12916,0.00032877,7]
[423033115,1779780670000,-1068.321473,0.00032877,7]
[423033106,1779780670000,-1068.321473,0.00032877,7]
[423033110,1779780670000,-1068.321473,0.00032877,7]
[423033108,1779780670000,-1068.321473,0.00032877,7]
[423033109,1779780670000,-1068.321473,0.00032877,7]
[423033107,1779780670000,-1068.321473,0.00032877,7]
[423033111,1779780670000,-1068.321473,0.00032877,7]
[423033112,1779780670000,-1068.321473,0.00032877,7]
[423033114,1779780670000,-261.99695,0.00032877,7]
[423033113,1779780670000,-1068.321473,0.00032877,7]
[423033118,1779780670000,-1068.321473,0.00032877,7]
[423033105,1779780670000,-218.129166,0.00032877,7]
[423033145,1779780670000,-151.0,0.00032877,7]
[423033103,1779780670000,-218.12916,0.00032877,7]
[423033143,1779780670000,-156.381112,0.00032877,7]
[423033186,1779780670000,-151.0,0.00032877,7]
[423033187,1779780670000,-151.0,0.00032877,7]
[423033190,1779780670000,-246.637324,0.00032877,7]
[423033188,1779780670000,-151.0,0.00032877,7]
[423033191,1779780670000,-151.0,0.00032877,7]
[423033189,1779780670000,-151.0,0.00032877,7]
[423033194,1779780670000,-248.536919,0.00032877,7]
[423033193,1779780670000,-531.031884,0.00032877,7]
[423033204,1779780670000,-1542.818055,0.00032877,7]
[423033195,1779780670000,-531.031884,0.00032877,7]
[423033200,1779780670000,-1542.818055,0.00032877,7]
[423033198,1779780670000,-1542.818055,0.00032877,7]
[423033197,1779780670000,-531.031884,0.00032877,7]
[423033196,1779780670000,-531.031884,0.00032877,7]
[423033202,1779780670000,-1542.818055,0.00032877,7]
[423033201,1779780670000,-531.031884,0.00032877,7]
[423033199,1779780670000,-531.031884,0.00032877,7]
[423033203,1779780670000,-531.031884,0.00032877,7]
[423033206,1779780670000,-531.031884,0.00032877,7]
[423033214,1779780670000,-531.031884,0.00032877,7]
[423033210,1779780670000,-531.031884,0.00032877,7]
[423033207,1779780670000,-1542.818055,0.00032877,7]
[423033211,1779780670000,-1542.818055,0.00032877,7]
[423033208,1779780670000,-531.031884,0.00032877,7]
[423033213,1779780670000,-1542.818055,0.00032877,7]
[423033205,1779780670000,-1542.818055,0.00032877,7]
[423033212,1779780670000,-531.031884,0.00032877,7]
[423033215,1779780670000,-1542.818055,0.00032877,7]
[423033147,1779780670000,-151.0,0.00032877,7]
[423033184,1779780670000,-151.0,0.00032877,7]
[423033185,1779780670000,-151.0,0.00032877,7]
[423033209,1779780670000,-1542.818055,0.00032877,7]
[423033183,1779780670000,-151.0,0.00032877,7]
[423033181,1779780670000,-151.0,0.00032877,7]
[423033153,1779780670000,-151.0,0.00032877,7]
[423033151,1779780670000,-151.0,0.00032877,7]
[423033168,1779780670000,-151.0,0.00032877,7]
[423033158,1779780670000,-266.143792,0.00032877,7]
[423033159,1779780670000,-151.0,0.00032877,7]
[423033157,1779780670000,-151.0,0.00032877,7]
[423033161,1779780670000,-151.0,0.00032877,7]
[423033167,1779780670000,-225.199617,0.00032877,7]
[423033163,1779780670000,-151.0,0.00032877,7]
[423033166,1779780670000,-151.0,0.00032877,7]
[423033160,1779780670000,-151.0,0.00032877,7]
[423033165,1779780670000,-235.978384,0.00032877,7]
[423033164,1779780670000,-151.0,0.00032877,7]
[423033152,1779780670000,-151.0,0.00032877,7]
[423033180,1779780670000,-151.0,0.00032877,7]
[423033192,1779780670000,-531.031884,0.00032877,7]
[423033182,1779780670000,-151.0,0.00032877,7]
[423033179,1779780670000,-151.0,0.00032877,7]
[423033172,1779780670000,-151.190872,0.00032877,7]
[423033162,1779780670000,-151.0,0.00032877,7]
[423033178,1779780670000,-151.0,0.00032877,7]
[423033173,1779780670000,-151.0,0.00032877,7]
[423033169,1779780670000,-151.0,0.00032877,7]
[423033175,1779780670000,-151.0,0.00032877,7]
[423033177,1779780670000,-151.0,0.00032877,7]
[423033176,1779780670000,-151.0,0.00032877,7]
[423033171,1779780670000,-153.018746,0.00032877,7]
[423033170,1779780670000,-151.0,0.00032877,7]
[423033174,1779780670000,-151.0,0.00032877,7]
[423033262,1779780671000,-629.90700487,0.000329,30]
[423033256,1779780671000,-500.0,0.00032877,2]
[423033257,1779780671000,-500.0,0.00032877,2]
[423033254,1779780671000,-247.40666,0.00032877,7]
[423033250,1779780671000,-247.406659,0.00032877,7]
[423033255,1779780671000,-167.40455632,0.00032877,2]
[423033252,1779780671000,-247.406659,0.00032877,7]
[423033249,1779780671000,-247.406659,0.00032877,7]
[423033244,1779780671000,-247.406659,0.00032877,7]
[423033251,1779780671000,-247.406659,0.00032877,7]
[423033264,1779780671000,-400.0,0.00032955,2]
[423033265,1779780671000,-400.0,0.00032955,2]
[423033261,1779780671000,-900.0,0.000329,120]
[423033269,1779780671000,-572.768293,0.00033,14]
[423033260,1779780671000,-419.97808507,0.00032877,2]
[423033259,1779780671000,-500.0,0.00032877,2]
[423033263,1779780671000,-400.0,0.00032955,2]
[423033268,1779780671000,-1019.1346015,0.00033,7]
[423033266,1779780671000,-400.0,0.00032955,2]
[423033278,1779780671000,-163.0,0.00033447,3]
[423033277,1779780671000,-2418.03644379,0.00033426,2]
[423033272,1779780671000,-150.0,0.00033087,30]
[423033276,1779780671000,-525.0,0.00033403,10]
[423033267,1779780671000,-340.037857,0.00032965,15]
[423033274,1779780671000,-151.0,0.0003325,2]
[423033273,1779780671000,-1433.4255452,0.00033179,2]
[423033248,1779780671000,-247.406659,0.00032877,7]
[423033258,1779780671000,-500.0,0.00032877,2]
[423033253,1779780671000,-247.406659,0.00032877,7]
[423033240,1779780671000,-247.406659,0.00032877,7]
[423033247,1779780671000,-247.406659,0.00032877,7]
[423033270,1779780671000,-2000.0,0.00033,7]
[423033216,1779780671000,-531.031884,0.00032877,7]
[423033217,1779780671000,-1542.818055,0.00032877,7]
[423033218,1779780671000,-531.031884,0.00032877,7]
[423033219,1779780671000,-1542.818055,0.00032877,7]
[423033220,1779780671000,-531.031884,0.00032877,7]
[423033225,1779780671000,-531.031884,0.00032877,7]
[423033227,1779780671000,-531.031884,0.00032877,7]
[423033226,1779780671000,-1542.818055,0.00032877,7]
[423033222,1779780671000,-531.031884,0.00032877,7]
[423033221,1779780671000,-151.0,0.00032877,7]
[423033224,1779780671000,-174.534708,0.00032877,7]
[423033223,1779780671000,-1542.818055,0.00032877,7]
[423033229,1779780671000,-1542.818055,0.00032877,7]
[423033239,1779780671000,-247.406659,0.00032877,7]
[423033238,1779780671000,-247.406659,0.00032877,7]
[423033237,1779780671000,-247.406659,0.00032877,7]
[423033241,1779780671000,-247.406659,0.00032877,7]
[423033228,1779780671000,-1542.818055,0.00032877,7]
[423033231,1779780671000,-1542.818055,0.00032877,7]
[423033234,1779780671000,-1542.818059,0.00032877,7]
[423033232,1779780671000,-1542.818055,0.00032877,7]
[423033235,1779780671000,-247.406659,0.00032877,7]
[423033230,1779780671000,-531.031876,0.00032877,7]
[423033236,1779780671000,-247.406659,0.00032877,7]
[423033233,1779780671000,-1542.818055,0.00032877,7]
[423033245,1779780671000,-247.406659,0.00032877,7]
[423033242,1779780671000,-247.406659,0.00032877,7]
[423033246,1779780671000,-247.406659,0.00032877,7]
[423033243,1779780671000,-247.406659,0.00032877,7]
[423033271,1779780671000,-350.0,0.00033014,5]
[423033290,1779780671000,-157.0,0.00033728,30]
[423033280,1779780671000,-1233.26989827,0.000335,2]
[423033310,1779780671000,-1092.62069712,0.00034045,7]
[423033313,1779780671000,-1214.73512558,0.00034045,7]
[423033315,1779780671000,-170.07957496,0.00034186,2]
[423033305,1779780671000,-500.0,0.00033975,30]
[423033307,1779780671000,-597.31052538,0.00034017,2]
[423033312,1779780671000,-1373.35258366,0.00034045,2]
[423033319,1779780671000,-150.0,0.00034352,30]
[423033324,1779780671000,-400.0,0.00034481,2]
[423033322,1779780671000,-400.0,0.00034453,2]
[423033323,1779780671000,-400.0,0.00034453,2]
[423033320,1779780671000,-207.26,0.0003442,120]
[423033330,1779780671000,-818.61,0.00034544,60]
[423033321,1779780671000,-400.0,0.00034453,2]
[423033325,1779780671000,-400.0,0.00034481,2]
[423033326,1779780671000,-400.0,0.00034481,2]
[423033327,1779780671000,-470.94830105,0.00034481,2]
[423033329,1779780671000,-380.67771865,0.00034539,2]
[423033332,1779780671000,-1216.39,0.00034544,60]
[423033334,1779780671000,-6306.94928897,0.00034592,2]
[423033331,1779780671000,-10124.94,0.00034544,60]
[423033333,1779780671000,-674.83587482,0.00034573,2]
[423033339,1779780671000,-235.0,0.00034728,30]
[423033337,1779780671000,-155.0,0.00034728,30]
[423033338,1779780671000,-155.0,0.00034728,30]
[423033335,1779780671000,-2000.0,0.0003463,30]
[423033275,1779780671000,-207.26,0.00033352,120]
[423033340,1779780671000,-766.0,0.00034728,30]
[423033314,1779780671000,-771.3,0.00034182,7]
[423033309,1779780671000,-1204.2710443,0.00034045,7]
[423033336,1779780671000,-158.0,0.00034728,30]
[423033308,1779780671000,-1278.45682392,0.00034037,7]
[423033311,1779780671000,-1158.37360152,0.00034045,7]
[423033292,1779780671000,-656.0,0.00033728,30]
[423033279,1779780671000,-150.0,0.00033451,2]
[423033283,1779780671000,-5012.35216959,0.00033624,2]
[423033288,1779780671000,-235.0,0.00033728,30]
[423033282,1779780671000,-2842.85693034,0.00033585,2]
[423033285,1779780671000,-158.0,0.00033728,30]
[423033291,1779780671000,-154.0,0.00033728,30]
[423033281,1779780671000,-1000.0,0.0003353,2]
[423033289,1779780671000,-766.0,0.00033728,30]
[423033287,1779780671000,-155.0,0.00033728,30]
[423033286,1779780671000,-155.0,0.00033728,30]
[423033284,1779780671000,-150.0,0.0003372,30]
[423033293,1779780671000,-158.0,0.00033729,30]
[423033328,1779780671000,-525.0,0.00034513,11]
[423033318,1779780671000,-249.0975,0.0003433,22]
[423033297,1779780671000,-157.0,0.00033729,30]
[423033317,1779780671000,-2000.0,0.00034247,30]
[423033306,1779780671000,-721.12765534,0.00034017,2]
[423033294,1779780671000,-152.0,0.00033729,30]
[423033300,1779780671000,-1606.39937293,0.00033911,60]
[423033304,1779780671000,-500.0,0.00033974,60]
[423033316,1779780671000,-260.959286,0.000342,21]
[423033299,1779780671000,-900.0,0.000339,120]
[423033298,1779780671000,-213.512142,0.00033867,20]
[423033295,1779780671000,-1473.0,0.00033729,30]
[423033296,1779780671000,-230.0,0.00033729,30]
[423033303,1779780671000,-600.0,0.00033974,60]
[423033302,1779780671000,-350.0,0.00033973,5]
[423033301,1779780671000,-525.0,0.00033958,11]
[423033380,1779780672000,-200.0,0.00035065,5]
[423033379,1779780672000,-200.0,0.00035065,5]
[423033381,1779780672000,-525.0,0.00035067,12]
[423033377,1779780672000,-200.0,0.00035064,5]
[423033378,1779780672000,-200.0,0.00035064,5]
[423033376,1779780672000,-200.0,0.00035064,5]
[423033375,1779780672000,-200.0,0.00035064,5]
[423033384,1779780672000,-200.0,0.00035177,5]
[423033374,1779780672000,-2000.0,0.00035041,30]
[423033382,1779780672000,-150.0,0.00035124,2]
[423033383,1779780672000,-163.0,0.00035125,3]
[423033401,1779780672000,-250.0,0.00035512,7]
[423033390,1779780672000,-207.26,0.00035352,120]
[423033385,1779780672000,-200.0,0.00035178,5]
[423033387,1779780672000,-150.32,0.000352,30]
[423033393,1779780672000,-2418.03644379,0.00035415,2]
[423033395,1779780672000,-200.0,0.00035424,5]
[423033396,1779780672000,-2000.0,0.00035425,30]
[423033370,1779780672000,-150.0,0.00035,2]
[423033389,1779780672000,-157.86609764,0.00035343,2]
[423033386,1779780672000,-213.512142,0.000352,26]
[423033394,1779780672000,-5012.35216959,0.00035415,2]
[423033391,1779780672000,-201.0,0.0003538,120]
[423033397,1779780672000,-200.0,0.0003544,5]
[423033392,1779780672000,-434.40723372,0.00035412,2]
[423033399,1779780672000,-1418.24274497,0.00035511,2]
[423033388,1779780672000,-160.93,0.0003523,30]
[423033372,1779780672000,-166.16269741,0.0003504,92]
[423033367,1779780672000,-20570.29449328,0.00035,30]
[423033368,1779780672000,-78287.7943394,0.00035,7]
[423033343,1779780672000,-656.0,0.00034728,30]
[423033344,1779780672000,-158.0,0.00034729,30]
[423033342,1779780672000,-154.0,0.00034728,30]
[423033341,1779780672000,-157.0,0.00034728,30]
[423033346,1779780672000,-1473.0,0.00034729,30]
[423033345,1779780672000,-152.0,0.00034729,30]
[423033348,1779780672000,-157.0,0.00034729,30]
[423033347,1779780672000,-230.0,0.00034729,30]
[423033351,1779780672000,-900.0,0.000349,120]
[423033349,1779780672000,-1500.0,0.00034795,2]
[423033350,1779780672000,-858.15993618,0.0003482,90]
[423033352,1779780672000,-350.0,0.00034931,5]
[423033371,1779780672000,-1000.0,0.00035,120]
[423033356,1779780672000,-4759.32769221,0.00035,2]
[423033355,1779780672000,-500.0,0.00034999,30]
[423033357,1779780672000,-1952.4832526,0.00035,2]
[423033358,1779780672000,-1550.84373141,0.00035,7]
[423033361,1779780672000,-1107.84,0.00035,2]
[423033359,1779780672000,-151.0,0.00035,5]
[423033363,1779780672000,-246.15,0.00035,2]
[423033365,1779780672000,-400.0,0.00035,10]
[423033364,1779780672000,-1316.63,0.00035,14]
[423033360,1779780672000,-1280.38,0.00035,10]
[423033366,1779780672000,-40000.0,0.00035,30]
[423033362,1779780672000,-191.8813755,0.00035,120]
[423033369,1779780672000,-1743.89,0.00035,7]
[423033354,1779780672000,-150.0,0.00034984,30]
[423033353,1779780672000,-372.723152,0.0003495,25]
[423033409,1779780672000,-300.0,0.00035515,2]
[423033398,1779780672000,-3000.0,0.000355,30]
[423033430,1779780672000,-300.0,0.00035515,2]
[423033434,1779780672000,-493.31854872,0.00035515,2]
[423033431,1779780672000,-300.0,0.00035515,2]
[423033433,1779780672000,-300.0,0.00035515,2]
[423033432,1779780672000,-300.0,0.00035515,2]
[423033447,1779780672000,-894.52521356,0.00035515,2]
[423033450,1779780672000,-300.0,0.00035515,2]
[423033440,1779780672000,-605.22809541,0.00035515,2]
[423033448,1779780672000,-300.0,0.00035515,2]
[423033443,1779780672000,-300.0,0.00035515,2]
[423033441,1779780672000,-300.0,0.00035515,2]
[423033444,1779780672000,-300.0,0.00035515,2]
[423033429,1779780672000,-300.0,0.00035515,2]
[423033438,1779780672000,-300.0,0.00035515,2]
[423033439,1779780672000,-300.0,0.00035515,2]
[423033449,1779780672000,-726.97207915,0.00035515,2]
[423033446,1779780672000,-1068.26820381,0.00035515,2]
[423033452,1779780672000,-300.0,0.00035515,2]
[423033451,1779780672000,-302.17519562,0.00035515,2]
[423033453,1779780672000,-300.95326125,0.00035515,2]
[423033454,1779780672000,-300.0,0.00035515,2]
[423033456,1779780672000,-300.0,0.00035515,2]
[423033455,1779780672000,-300.0,0.00035515,2]
[423033457,1779780672000,-300.0,0.00035515,2]
[423033458,1779780672000,-300.0,0.00035515,2]
[423033410,1779780672000,-452.47069878,0.00035515,2]
[423033445,1779780672000,-528.4188744,0.00035515,2]
[423033427,1779780672000,-300.0,0.00035515,2]
[423033442,1779780672000,-300.0,0.00035515,2]
[423033428,1779780672000,-300.0,0.00035515,2]
[423033424,1779780672000,-300.0,0.00035515,2]
[423033400,1779780672000,-250.0,0.00035512,7]
[423033405,1779780672000,-309.97993276,0.00035515,2]
[423033404,1779780672000,-575.34934104,0.00035514,2]
[423033402,1779780672000,-49325.58998294,0.00035512,2]
[423033403,1779780672000,-216.5363669,0.00035514,30]
[423033408,1779780672000,-578.13827145,0.00035515,2]
[423033407,1779780672000,-300.0,0.00035515,2]
[423033422,1779780672000,-300.0,0.00035515,2]
[423033412,1779780672000,-300.0,0.00035515,2]
[423033423,1779780672000,-300.0,0.00035515,2]
[423033411,1779780672000,-300.0,0.00035515,2]
[423033414,1779780672000,-300.0,0.00035515,2]
[423033406,1779780672000,-300.0,0.00035515,2]
[423033426,1779780672000,-300.0,0.00035515,2]
[423033413,1779780672000,-300.0,0.00035515,2]
[423033436,1779780672000,-300.0,0.00035515,2]
[423033437,1779780672000,-300.0,0.00035515,2]
[423033435,1779780672000,-492.59556593,0.00035515,2]
[423033420,1779780672000,-1096.13064931,0.00035515,2]
[423033421,1779780672000,-300.0,0.00035515,2]
[423033425,1779780672000,-300.0,0.00035515,2]
[423033417,1779780672000,-300.0,0.00035515,2]
[423033419,1779780672000,-704.15043091,0.00035515,2]
[423033416,1779780672000,-484.70549874,0.00035515,2]
[423033418,1779780672000,-300.0,0.00035515,2]
[423033415,1779780672000,-300.0,0.00035515,2]
[423033503,1779780673000,-300.0,0.00035515,2]
[423033491,1779780673000,-300.0,0.00035515,2]
[423033513,1779780673000,-300.0,0.00035515,2]
[423033502,1779780673000,-300.0,0.00035515,2]
[423033494,1779780673000,-310.23513187,0.00035515,2]
[423033499,1779780673000,-300.0,0.00035515,2]
[423033500,1779780673000,-300.0,0.00035515,2]
[423033492,1779780673000,-300.0,0.00035515,2]
[423033493,1779780673000,-484.70549874,0.00035515,2]
[423033496,1779780673000,-300.0,0.00035515,2]
[423033490,1779780673000,-300.0,0.00035515,2]
[423033504,1779780673000,-300.0,0.00035515,2]
[423033495,1779780673000,-300.0,0.00035515,2]
[423033512,1779780673000,-300.0,0.00035515,2]
[423033519,1779780673000,-300.0,0.00035515,2]
[423033505,1779780673000,-300.0,0.00035515,2]
[423033511,1779780673000,-300.0,0.00035515,2]
[423033509,1779780673000,-300.0,0.00035515,2]
[423033507,1779780673000,-300.0,0.00035515,2]
[423033508,1779780673000,-300.0,0.00035515,2]
[423033506,1779780673000,-300.0,0.00035515,2]
[423033510,1779780673000,-300.0,0.00035515,2]
[423033514,1779780673000,-493.31854872,0.00035515,2]
[423033518,1779780673000,-300.0,0.00035515,2]
[423033516,1779780673000,-300.0,0.00035515,2]
[423033517,1779780673000,-300.0,0.00035515,2]
[423033515,1779780673000,-365.71910999,0.00035515,2]
[423033498,1779780673000,-300.0,0.00035515,2]
[423033501,1779780673000,-1096.13064931,0.00035515,2]
[423033497,1779780673000,-300.0,0.00035515,2]
[423033459,1779780673000,-300.0,0.00035515,2]
[423033485,1779780673000,-300.0,0.00035515,2]
[423033462,1779780673000,-300.0,0.00035515,2]
[423033522,1779780673000,-300.0,0.00035515,2]
[423033461,1779780673000,-1263.80255523,0.00035515,2]
[423033460,1779780673000,-300.0,0.00035515,2]
[423033464,1779780673000,-527.54996007,0.00035515,2]
[423033475,1779780673000,-1633.44293418,0.00035515,2]
[423033467,1779780673000,-300.0,0.00035515,2]
[423033468,1779780673000,-300.0,0.00035515,2]
[423033476,1779780673000,-300.0,0.00035515,2]
[423033466,1779780673000,-300.0,0.00035515,2]
[423033470,1779780673000,-950.20540785,0.00035515,2]
[423033465,1779780673000,-300.0,0.00035515,2]
[423033469,1779780673000,-865.51932099,0.00035515,2]
[423033489,1779780673000,-300.0,0.00035515,2]
[423033474,1779780673000,-300.0,0.00035515,2]
[423033471,1779780673000,-300.0,0.00035515,2]
[423033472,1779780673000,-1148.67046453,0.00035515,2]
[423033478,1779780673000,-300.0,0.00035515,2]
[423033488,1779780673000,-300.0,0.00035515,2]
[423033479,1779780673000,-594.72576007,0.00035515,2]
[423033480,1779780673000,-300.0,0.00035515,2]
[423033481,1779780673000,-300.0,0.00035515,2]
[423033477,1779780673000,-300.0,0.00035515,2]
[423033482,1779780673000,-464.42609091,0.00035515,2]
[423033484,1779780673000,-578.13827145,0.00035515,2]
[423033487,1779780673000,-300.0,0.00035515,2]
[423033483,1779780673000,-300.0,0.00035515,2]
[423033486,1779780673000,-452.47069878,0.00035515,2]
[423033473,1779780673000,-309.97993276,0.00035515,2]
[423033524,1779780673000,-300.0,0.00035515,2]
[423033463,1779780673000,-344.40589394,0.00035515,2]
[423033521,1779780673000,-300.0,0.00035515,2]
[423033557,1779780673000,-1633.44293418,0.00035515,2]
[423033564,1779780673000,-464.42609091,0.00035515,2]
[423033555,1779780673000,-300.0,0.00035515,2]
[423033565,1779780673000,-300.0,0.00035515,2]
[423033561,1779780673000,-594.72576007,0.00035515,2]
[423033558,1779780673000,-300.0,0.00035515,2]
[423033562,1779780673000,-300.0,0.00035515,2]
[423033559,1779780673000,-300.0,0.00035515,2]
[423033560,1779780673000,-300.0,0.00035515,2]